bitfinex/quotes_SOLUSD_20250424
["timestamp","ask_amount","ask_price","bid_price","bid_amount"]
[1745505315457,30.23022787,149.38,149.33,30.16722787]
[1745505315640,30.23022787,149.38,149.34,30.16722787]
[1745505315829,30.23022787,149.38,149.33,30.16722787]
[1745505316656,30.23022787,149.38,149.34,36.86303851]
[1745505316856,0.063,149.38,149.36,30.16722787]
[1745505317160,0.063,149.38,149.37,48.81687673]
[1745505318250,0.063,149.38,149.37,30.16722787]
[1745505318833,0.063,149.38,149.36,36.86230255]
[1745505319039,0.063,149.38,149.37,30.16722787]
[1745505320268,0.063,149.38,149.36,30.16722787]
[1745505320778,30.23022787,149.38,149.34,36.8631793]
[1745505321276,30.16722787,149.36,149.32,6.69690561]
[1745505321578,30.23022787,149.38,149.32,6.69690561]
[1745505321876,30.23022787,149.38,149.36,30.16722787]
[1745505321877,0.063,149.38,149.36,30.16722787]
[1745505322045,0.063,149.38,149.37,30.16722787]
[1745505322456,0.063,149.38,149.33,18.64964886]
[1745505322682,0.063,149.38,149.35,30.16722787]
[1745505323184,0.063,149.38,149.36,6.69523299]
[1745505323791,0.063,149.38,149.36,36.86246086]
[1745505323983,0.063,149.38,149.36,6.69523299]
[1745505324283,0.063,149.38,149.37,30.16722787]
[1745505324441,0.063,149.38,149.37,48.81687673]
[1745505324644,1e-08,149.39,149.38,25.44501043]
[1745505324843,1e-08,149.39,149.38,87.00357343]
[1745505325083,1e-08,149.39,149.38,63.53068215]
[1745505325641,1e-08,149.39,149.38,63.38852058]
[1745505326273,30.16722788,149.39,149.38,1.22410726]
[1745505326690,30.16722788,149.39,149.32,48.81687673]
[1745505326861,30.16722787,149.35,149.33,6.69657804]
[1745505327182,30.16722787,149.34,149.3,6.69792364]
[1745505327553,30.16722787,149.32,149.29,6.69826798]
[1745505327742,15.14,149.34,149.3,0.063]
[1745505328072,60.33445574,149.31,149.3,0.063]
[1745505328879,30.16722787,149.31,149.3,0.063]
[1745505329499,79.12626617,149.31,149.3,0.063]
[1745505329996,85.82374122,149.31,149.3,0.063]
[1745505330292,30.16722787,149.24,149.21,6.70188213]
[1745505330467,45.30722787,149.27,149.23,30.16722787]
[1745505330674,45.30722787,149.27,149.21,6.70188213]
[1745505330675,15.14,149.27,149.24,30.16722787]
[1745505331178,15.14,149.27,149.25,6.7001675]
[1745505332598,15.14,149.27,149.25,36.86739537]
[1745505332782,30.16722787,149.29,149.25,6.7001675]
[1745505333093,30.16722787,149.29,149.25,36.86739537]
[1745505333399,30.16722787,149.29,149.25,30.16722787]
[1745505333770,30.16722787,149.29,149.24,30.16722787]
[1745505334076,15.14,149.31,149.27,30.16722787]
[1745505334077,45.30722787,149.31,149.27,30.16722787]
[1745505334285,15.14,149.31,149.28,30.16722787]
[1745505334822,30.16722787,149.29,149.23,23.45354067]
[1745505335106,30.16722787,149.29,149.25,30.16722787]
[1745505335401,30.16722787,149.28,149.26,6.69971861]
[1745505335904,30.16722787,149.3,149.26,36.86694648]
[1745505336302,15.14,149.31,149.29,30.16722787]
[1745505336671,45.30722787,149.35,149.3,30.16722787]
[1745505336978,15.14,149.35,149.32,30.16722787]
[1745505337370,15.14,149.35,149.32,6.69686855]
[1745505337673,15.14,149.35,149.32,36.86409642]
[1745505338076,30.16722787,149.34,149.3,6.69789844]
[1745505338783,15.14,149.35,149.33,30.16722787]
[1745505339009,15.14,149.35,149.3,6.69789844]
[1745505339208,45.30722787,149.35,149.3,36.86512631]
[1745505339383,30.16722787,149.34,149.3,6.69789844]
[1745505339700,30.16722787,149.34,149.3,36.86512631]
[1745505339868,30.16722787,149.33,149.3,6.69789844]
[1745505340072,30.16722787,149.32,149.28,36.86604887]
[1745505340303,30.16722787,149.32,149.28,6.698821]
[1745505340503,30.16722787,149.31,149.28,6.698821]
[1745505340999,30.16722787,149.31,149.27,30.16722787]
[1745505341000,30.16722787,149.31,149.27,6.69922076]
[1745505341376,30.16722787,149.32,149.28,30.16722787]
[1745505341579,30.16722787,149.33,149.29,30.16722787]
[1745505341876,56.16722787,149.34,149.3,30.16722787]
[1745505342091,26.0,149.34,149.31,30.16722787]
[1745505342802,15.14,149.35,149.31,30.16722787]
[1745505343001,45.30722787,149.35,149.28,18.64964886]
[1745505343195,45.30722787,149.35,149.3,30.16722787]
[1745505343393,15.14,149.35,149.32,30.16722787]
[1745505343700,15.14,149.35,149.33,30.16722787]
[1745505343882,15.14,149.35,149.32,30.16722787]
[1745505344085,45.30722787,149.35,149.31,6.69747505]
[1745505344289,30.16722787,149.34,149.29,36.86560016]
[1745505344490,30.16722787,149.33,149.29,36.86560016]
[1745505344684,30.16722787,149.34,149.3,30.16722787]
[1745505345719,30.16722787,149.34,149.31,6.69747505]
[1745505345881,45.30722787,149.35,149.31,36.86470292]
[1745505346499,15.14,149.35,149.32,30.16722787]
[1745505346811,26.0,149.38,149.34,30.16722787]
[1745505347410,45.30722788,149.39,149.35,30.16722787]
[1745505347609,15.14000001,149.39,149.38,30.16722787]
[1745505347787,1e-08,149.39,149.36,36.86215683]
[1745505348109,1e-08,149.39,149.37,30.16722787]
[1745505348489,1e-08,149.39,149.36,6.69492896]
[1745505348689,1e-08,149.39,149.33,36.86380591]
[1745505348690,30.16722787,149.38,149.33,36.86380591]
[1745505348895,30.16722787,149.38,149.34,30.16722787]
[1745505349104,1e-08,149.39,149.36,30.16722787]
[1745505349813,1e-08,149.39,149.37,36.86201263]
[1745505350179,1e-08,149.39,149.38,30.16722787]
[1745505351784,1e-08,149.39,149.38,36.86156446]
[1745505352092,1e-08,149.39,149.34,18.64964886]
[1745505352296,30.16722788,149.39,149.34,30.16722787]
[1745505352605,1e-08,149.39,149.36,30.16722787]
[1745505353419,1e-08,149.39,149.33,23.43704618]
[1745505353420,1e-08,149.39,149.37,30.16722787]
[1745505353792,1e-08,149.39,149.36,6.69523299]
[1745505354399,30.16722787,149.37,149.34,6.69598145]
[1745505354904,30.16722787,149.38,149.34,6.69598145]
[1745505355289,30.16722787,149.38,149.34,36.86320932]
[1745505356929,30.16722787,149.38,149.33,6.69639831]
[1745505357096,30.16722787,149.34,149.31,6.69747505]
[1745505357295,30.16722787,149.35,149.31,6.69747505]
[1745505357492,30.16722787,149.36,149.31,53.60839054]
[1745505357695,45.30722787,149.37,149.32,30.16722787]
[1745505358096,45.30722787,149.37,149.33,6.69657804]
[1745505358820,30.16722787,149.36,149.33,6.69657804]
[1745505359015,30.16722787,149.36,149.31,30.16722787]
[1745505359618,45.30722787,149.37,149.32,30.16722787]
[1745505360003,30.16722787,149.36,149.32,30.16722787]
[1745505360210,30.16722787,149.36,149.32,36.86383457]
[1745505360419,30.16722787,149.35,149.31,6.6972889]
[1745505360603,30.16722787,149.32,149.27,30.16722787]
[1745505361424,30.16722787,149.31,149.27,30.16722787]
[1745505361612,30.16722787,149.3,149.26,30.16722787]
[1745505361811,30.16722787,149.29,149.26,6.69971861]
[1745505362217,30.16722787,149.28,149.26,6.69971861]
[1745505362738,41.14,149.31,149.25,6.70007733]
[1745505362919,30.16722787,149.3,149.26,30.16722787]
[1745505363235,30.16722787,149.3,149.25,36.8673052]
[1745505363426,30.16722787,149.29,149.25,36.8673052]
[1745505365040,41.14,149.35,149.28,30.16722787]
[1745505365210,41.14,149.35,149.26,30.16722787]
[1745505365211,30.16722787,149.31,149.26,30.16722787]
[1745505365410,30.16722787,149.3,149.26,30.16722787]
[1745505365815,30.16722787,149.31,149.27,30.16722787]
[1745505366223,30.16722787,149.32,149.27,30.16722787]
[1745505366419,30.16722787,149.32,149.28,30.16722787]
[1745505366617,30.16722787,149.31,149.27,30.16722787]
[1745505366823,30.16722787,149.3,149.26,30.16722787]
[1745505367212,30.16722787,149.32,149.27,30.16722787]
[1745505367412,15.14,149.35,149.31,30.16722787]
[1745505367922,45.30722787,149.35,149.32,6.69702652]
[1745505368119,30.16722787,149.34,149.31,6.69728897]
[1745505368324,15.14,149.35,149.28,30.16722787]
[1745505368325,30.16722787,149.32,149.28,30.16722787]
[1745505368543,30.16722787,149.33,149.29,30.16722787]
[1745505369320,30.16722787,149.34,149.3,30.16722787]
[1745505369522,30.16722787,149.34,149.29,30.16722787]
[1745505369958,30.16722787,149.33,149.28,30.16722787]
[1745505370122,30.16722787,149.31,149.26,30.16722787]
[1745505370816,30.16722787,149.31,149.27,30.16722787]
[1745505371231,30.16722787,149.32,149.27,30.16722787]
[1745505371468,15.14,149.35,149.29,30.16722787]
[1745505371745,15.14,149.35,149.34,30.16722787]
[1745505371913,56.16722787,149.38,149.34,30.16722787]
[1745505372118,26.0,149.38,149.35,30.16722787]
[1745505372314,15.14000001,149.39,149.36,30.16722787]
[1745505372632,45.30722788,149.39,149.35,30.16722787]
[1745505372840,15.14000001,149.39,149.36,30.16722787]
[1745505373344,15.14000001,149.39,149.35,30.16722787]
[1745505373544,15.14000001,149.39,149.36,30.16722787]
[1745505373747,45.30722788,149.39,149.34,53.6034126]
[1745505373952,30.16722787,149.37,149.34,6.69586064]
[1745505374760,45.30722788,149.39,149.34,36.86308851]
[1745505375438,30.16722787,149.38,149.34,6.69586064]
[1745505375947,30.16722787,149.35,149.31,30.16722787]
[1745505376149,30.30938944,149.38,149.3,30.16722787]
[1745505376651,30.16722787,149.35,149.3,30.16722787]
[1745505376844,30.16722787,149.35,149.3,36.86515151]
[1745505378054,30.16722787,149.35,149.31,30.16722787]
[1745505378239,30.16722787,149.35,149.32,6.69702652]
[1745505378438,15.14000001,149.39,149.34,30.16722787]
[1745505378630,30.16722787,149.38,149.34,30.16722787]
[1745505379140,30.16722787,149.38,149.33,30.16722787]
[1745505379523,30.16722787,149.37,149.33,30.16722787]
[1745505379727,30.16722787,149.37,149.32,36.86425439]
[1745505380152,15.14000001,149.39,149.36,30.16722787]
[1745505380450,15.14000001,149.39,149.36,6.69507383]
[1745505380647,15.14000001,149.39,149.36,36.8623017]
[1745505380858,15.14000001,149.39,149.37,30.16722787]
[1745505381152,15.14000001,149.39,149.38,30.16722787]
[1745505381153,1e-08,149.39,149.38,30.16722787]
[1745505382436,1e-08,149.39,149.38,36.86156446]
[1745505386432,1e-08,149.39,149.38,55.51121332]
[1745505386633,1e-08,149.39,149.38,85.67844119]
[1745505386839,0.063,149.41,149.39,18.79181043]
[1745505387032,0.063,149.41,149.4,50.18298169]
[1745505387232,0.063,149.41,149.4,56.87642211]
[1745505387766,0.03,149.43,149.42,0.14216157]
[1745505388058,0.03,149.45,149.44,44.79181043]
[1745505388356,0.03,149.49,149.46,0.14216157]
[1745505388671,0.03,149.49,149.46,20.01526247]
[1745505388844,0.03,149.49,149.46,50.18249034]
[1745505389039,0.03,149.49,149.47,44.79181043]
[1745505389241,0.03,149.49,149.48,50.18232665]
[1745505389639,0.03,149.5,149.49,18.79181043]
[1745505389932,0.03,149.5,149.49,20.01501695]
[1745505390346,0.03,149.5,149.49,50.18224482]
[1745505391054,0.03,149.5,149.49,76.18224482]
[1745505391261,0.343448,149.58,149.52,26.0]
[1745505391463,0.343448,149.58,149.57,30.16722787]
[1745505393143,0.343448,149.58,149.54,18.64964886]
[1745505393444,0.343448,149.58,149.57,30.16722787]
[1745505394139,0.343448,149.58,149.54,18.64964886]
[1745505394334,30.16722787,149.56,149.52,1.22296109]
[1745505394538,30.16722787,149.53,149.5,9.15]
[1745505394842,30.16722787,149.54,149.5,9.15]
[1745505395236,30.16722787,149.54,149.5,39.31722787]
[1745505395473,30.16722787,149.52,149.5,9.15]
[1745505395652,30.16722787,149.53,149.5,9.15]
[1745505395848,30.16722787,149.54,149.5,39.31722787]
[1745505396237,30.16722787,149.54,149.5,9.15]
[1745505396442,30.16722787,149.53,149.5,9.15]
[1745505397056,28.50499351,149.58,149.5,9.15]
[1745505397057,30.16722787,149.54,149.5,9.15]
[1745505397262,30.16722787,149.53,149.5,9.15]
[1745505397566,30.16722787,149.54,149.5,9.15]
[1745505398163,32.68640468,149.56,149.5,9.15]
[1745505398355,30.16722787,149.54,149.5,9.15]
[1745505398750,30.16722787,149.54,149.5,39.31722787]
[1745505399449,30.16722787,149.54,149.5,9.15]
[1745505399775,30.16722787,149.53,149.5,9.15]
[1745505399984,32.68639305,149.56,149.5,9.15]
[1745505400178,26.0,149.57,149.52,30.16722787]
[1745505400349,30.16722787,149.56,149.52,30.16722787]
[1745505400541,21.677348,149.58,149.52,30.16722787]
[1745505400850,30.16722787,149.56,149.52,30.16722787]
[1745505401367,30.16722787,149.56,149.5,9.15]
[1745505401368,30.16722787,149.53,149.5,9.15]
[1745505401567,30.16722787,149.54,149.5,9.15]
[1745505401771,30.16722787,149.55,149.5,39.31722787]
[1745505402073,30.16722787,149.54,149.5,39.31722787]
[1745505402773,26.0,149.56,149.5,9.15]
[1745505403073,30.16722787,149.54,149.5,9.15]
[1745505404057,30.16722787,149.53,149.5,9.15]
[1745505404274,56.16722787,149.51,149.5,9.15]
[1745505404983,76.4868383,149.51,149.5,9.15]
[1745505405572,56.16722787,149.51,149.5,9.15]
[1745505406171,15.1,149.52,149.5,39.31722787]
[1745505406377,45.26722787,149.56,149.51,30.16722787]
[1745505406578,30.16722787,149.55,149.51,30.16722787]
[1745505406956,30.16722787,149.53,149.5,9.15]
[1745505407356,30.16722787,149.55,149.5,9.15]
[1745505407580,45.26722787,149.56,149.51,30.16722787]
[1745505407991,30.16722787,149.55,149.51,30.16722787]
[1745505408167,45.26722787,149.56,149.51,30.16722787]
[1745505408791,30.16722787,149.55,149.51,30.16722787]
[1745505408974,30.16722787,149.54,149.5,9.15]
[1745505409175,15.1,149.56,149.5,9.15]
[1745505409176,30.16722787,149.53,149.5,9.15]
[1745505409781,30.16722787,149.54,149.5,9.15]
[1745505409978,15.1,149.56,149.52,30.16722787]
[1745505410177,0.343448,149.58,149.55,30.16722787]
[1745505411300,30.51067587,149.58,149.53,30.16722787]
[1745505411496,30.51067587,149.58,149.54,30.16722787]
[1745505411668,30.16722787,149.57,149.53,36.85454415]
[1745505411994,30.16722787,149.57,149.52,36.85513159]
[1745505412174,30.16722787,149.55,149.5,9.15]
[1745505412500,30.16722787,149.54,149.5,39.31722787]
[1745505412677,30.16722787,149.54,149.5,46.00609992]
[1745505412878,30.16722787,149.55,149.5,46.00609992]
[1745505413998,30.16722787,149.56,149.51,30.16722787]
[1745505414197,56.16722787,149.56,149.51,30.16722787]
[1745505414768,56.51067587,149.58,149.54,30.16722787]
[1745505414980,0.343448,149.58,149.54,30.16722787]
[1745505415274,0.343448,149.58,149.51,18.64964886]
[1745505415489,30.51067587,149.58,149.54,30.16722787]
[1745505416276,30.51067587,149.58,149.54,6.68694879]
[1745505416567,30.51067587,149.58,149.54,36.85417666]
[1745505418284,0.343448,149.58,149.54,36.85417666]
[1745505419483,30.51067587,149.58,149.54,36.85417666]
[1745505420089,0.343448,149.58,149.54,36.85417666]
[1745505420502,30.51067587,149.58,149.54,30.16722787]
[1745505421317,0.343448,149.58,149.55,30.16722787]
[1745505421803,0.343448,149.58,149.57,30.16722787]
[1745505422003,0.343448,149.58,149.54,30.16722787]
[1745505422487,30.51067587,149.58,149.53,36.85448889]
[1745505422684,30.16722787,149.57,149.52,36.85509605]
[1745505423080,30.16722787,149.56,149.52,30.16722787]
[1745505423284,0.343448,149.58,149.51,6.68832661]
[1745505423285,30.16722787,149.55,149.51,6.68832661]
[1745505423489,30.16722787,149.55,149.51,36.85555448]
[1745505423685,30.16722787,149.55,149.5,9.15]
[1745505423686,30.16722787,149.54,149.5,39.31722787]
[1745505423893,30.16722787,149.55,149.51,30.16722787]
[1745505424197,30.16722787,149.56,149.51,30.16722787]
[1745505424406,56.51067587,149.58,149.53,30.16722787]
[1745505424612,0.343448,149.58,149.56,30.16722787]
[1745505425224,0.343448,149.58,149.55,30.16722787]
[1745505425587,30.51067587,149.58,149.5,34.48842303]
[1745505425812,30.51067587,149.58,149.53,30.16722787]
[1745505427396,0.343448,149.58,149.55,30.16722787]
[1745505428015,0.343448,149.58,149.57,30.16722787]
[1745505429317,0.343448,149.58,149.56,30.16722787]
[1745505429490,0.343448,149.58,149.57,30.16722787]
[1745505430406,0.343448,149.58,149.57,36.85306059]
[1745505431294,0.343448,149.58,149.57,55.50270945]
[1745505431816,0.343448,149.58,149.57,56.86742328]
[1745505434624,0.03,149.64,149.59,0.14216157]
[1745505434921,0.03,149.64,149.63,30.16722787]
[1745505435505,0.03,149.64,149.61,6.68396759]
[1745505435714,0.03,149.64,149.62,30.16722787]
[1745505436615,0.03,149.64,149.6,31.38953497]
[1745505436913,30.19722787,149.64,149.6,30.16722787]
[1745505437125,30.16722787,149.63,149.59,30.16722787]
[1745505437306,30.16722787,149.62,149.57,6.68583272]
[1745505437487,30.16722787,149.62,149.58,30.16722787]
[1745505437688,30.16722787,149.61,149.56,30.16722787]
[1745505438524,30.16722787,149.6,149.56,30.16722787]
[1745505439719,56.16722787,149.61,149.56,30.16722787]
[1745505440117,30.16722787,149.6,149.56,30.16722787]
[1745505440296,56.16722787,149.61,149.56,30.16722787]
[1745505440721,56.16722787,149.61,149.54,30.16722787]
[1745505440722,30.16722787,149.58,149.54,30.16722787]
[1745505441024,30.16722787,149.56,149.51,6.68851581]
[1745505441235,45.24722787,149.58,149.53,30.16722787]
[1745505441602,30.16722787,149.57,149.53,30.16722787]
[1745505441805,45.24722787,149.58,149.53,36.8546844]
[1745505442014,30.16722787,149.57,149.53,30.16722787]
[1745505442205,45.24722787,149.58,149.53,36.85482625]
[1745505442724,15.08,149.58,149.53,36.85482625]
[1745505442901,21.489,149.62,149.57,30.16722787]
[1745505443227,15.08,149.62,149.58,30.16722787]
[1745505443401,45.24722787,149.62,149.57,30.16722787]
[1745505443727,45.24722787,149.62,149.58,30.16722787]
[1745505444507,15.08,149.62,149.6,30.16722787]
[1745505444725,0.03,149.64,149.61,30.16722787]
[1745505445223,0.03,149.64,149.63,30.16722787]
[1745505445639,0.03,149.64,149.62,36.85058448]
[1745505446911,0.03,149.64,149.63,30.16722787]
[1745505447306,0.03,149.64,149.63,48.81687673]
[1745505447821,0.03,149.64,149.63,55.5000285]
[1745505448627,0.03,149.64,149.63,36.85037964]
[1745505448830,0.03,149.64,149.63,6.68315177]
[1745505449036,0.03,149.64,149.62,36.85078198]
[1745505449241,0.03,149.64,149.63,30.16722787]
[1745505449430,0.03,149.64,149.63,48.81687673]
[1745505449823,0.03,149.64,149.63,55.5000285]
[1745505450232,0.00168361,149.64,149.63,55.5000285]
[1745505453415,0.00168361,149.64,149.63,56.8642521]
[1745505456924,0.03,149.68,149.67,44.64964886]
[1745505457122,0.03,149.68,149.67,74.81687673]
[1745505457730,0.03,149.68,149.67,30.16722787]
[1745505457951,0.03,149.68,149.65,30.16722787]
[1745505458147,0.03,149.68,149.66,30.16722787]
[1745505458306,0.03,149.68,149.64,25.33190748]
[1745505458307,0.03,149.68,149.67,30.16722787]
[1745505458739,0.03,149.68,149.66,30.16722787]
[1745505459532,0.03,149.68,149.67,30.16722787]
[1745505459947,0.03,149.68,149.67,55.4982424]
[1745505462241,0.03,149.68,149.67,36.84859354]
[1745505462447,0.03,149.68,149.67,55.4982424]
[1745505462616,0.03,149.68,149.67,36.84859354]
[1745505463016,0.03,149.68,149.67,55.4982424]
[1745505463948,0.03,149.68,149.67,55.2982424]
[1745505465628,0.03,149.68,149.67,55.44040397]
[1745505465833,0.03,149.68,149.67,56.6621394]
[1745505466033,0.03,149.68,149.67,56.51997783]
[1745505467842,0.03,149.68,149.67,37.87032897]
[1745505468042,0.03,149.68,149.63,26.0]
[1745505468043,0.03,149.68,149.66,36.84903552]
[1745505468240,0.03,149.68,149.67,30.16722787]
[1745505469038,0.03,149.68,149.67,48.81687673]
[1745505469241,0.03,149.68,149.67,55.4982424]
[1745505470327,0.03,149.68,149.67,55.64040397]
[1745505470646,0.03,149.68,149.67,56.8621394]
[1745505473757,0.03,149.7,149.69,44.79181043]
[1745505473935,0.03,149.73,149.72,48.81687673]
[1745505474134,0.03,149.73,149.72,78.9841046]
[1745505474331,0.03,149.73,149.72,18.64964886]
[1745505474542,0.03,149.73,149.72,48.81687673]
[1745505474854,0.03,149.73,149.72,30.16722787]
[1745505475361,0.03,149.73,149.72,18.72829521]
[1745505475651,0.03,149.73,149.72,25.40742959]
[1745505477449,0.03,149.73,149.72,44.05707845]
[1745505478251,0.03,149.77,149.72,44.05707845]
[1745505478252,0.03,149.77,149.73,20.20904886]
[1745505478424,0.03,149.77,149.76,37.37794407]
[1745505478632,0.03,149.77,149.76,37.52010564]
[1745505478931,0.03,149.79,149.77,18.79181043]
[1745505479150,0.03,149.79,149.78,37.45659042]
[1745505479461,0.03,149.79,149.78,18.72829521]
[1745505479637,41.978837,149.87,149.79,18.79181043]
[1745505479839,41.978837,149.87,149.85,18.72829521]
[1745505480350,15.978837,149.87,149.81,18.64964886]
[1745505480552,15.978837,149.87,149.85,18.72829521]
[1745505481364,0.918837,149.87,149.86,18.72829521]
[1745505481648,0.918837,149.87,149.86,29.89893146]
[1745505481833,0.918837,149.87,149.86,85.12040648]
[1745505482586,0.918837,149.87,149.86,85.26256805]
[1745505482749,37.72893146,149.99,149.88,0.14216157]
[1745505482942,29.89893146,149.96,149.92,29.89893146]
[1745505483139,26.0,149.98,149.91,29.89893146]
[1745505483455,29.89893146,149.96,149.91,29.89893146]
[1745505483753,29.89893146,149.93,149.88,31.11895509]
[1745505483941,29.89893146,149.91,149.87,29.89893146]
[1745505484124,31.51633146,149.92,149.88,29.89893146]
[1745505484325,1.6174,149.92,149.89,29.89893146]
[1745505484554,1.6174,149.92,149.9,29.89893146]
[1745505484720,1.6174,149.92,149.85,18.64964886]
[1745505484925,57.51633146,149.92,149.87,29.89893146]
[1745505485543,26.0,149.94,149.88,29.89893146]
[1745505485746,30.0,149.9,149.88,29.89893146]
[1745505485934,30.0,149.9,149.89,29.89893146]
[1745505486246,26.0,149.95,149.89,29.89893146]
[1745505486456,21.70788818,149.98,149.94,29.89893146]
[1745505486457,15.04,149.98,149.94,29.89893146]
[1745505486639,1.5941,150.0,149.95,29.89893146]
[1745505486828,46.53303146,150.0,149.95,29.89893146]
[1745505487031,46.53303146,150.0,149.9,0.14216157]
[1745505487228,46.53303146,150.0,149.95,29.89893146]
[1745505487430,42.6341,150.0,149.96,29.89893146]
[1745505488027,72.53303146,150.0,149.93,6.66969594]
[1745505488231,72.53303146,150.0,149.95,29.89893146]
[1745505488466,36.12863146,149.99,149.91,6.67066906]
[1745505488633,6.2297,149.99,149.95,29.89893146]
[1745505488839,36.12863146,149.99,149.95,29.89893146]
[1745505489040,42.6341,150.0,149.96,29.89893146]
[1745505489252,72.53303146,150.0,149.96,29.89893146]
[1745505489570,29.89893146,149.99,149.94,29.89893146]
[1745505489939,42.6341,150.0,149.95,29.89893146]
[1745505489940,72.53303146,150.0,149.95,29.89893146]
[1745505490245,15.04,150.0,149.98,29.89893146]
[1745505490654,15.04,150.0,149.93,0.14216157]
[1745505490849,15.04,150.0,149.96,29.89893146]
[1745505491260,8.23202436,150.04,149.96,29.89893146]
[1745505491261,1.6031,150.13,149.99,59.79786292]
[1745505491436,29.89893146,150.09,150.02,18.64964886]
[1745505491643,29.89893146,150.1,150.05,29.89893146]
[1745505491969,1.6031,150.13,150.07,29.89893146]
[1745505492169,29.89893146,150.11,150.06,29.89893146]
[1745505492467,29.89893146,150.1,150.06,29.89893146]
[1745505492786,0.03,150.06,150.03,6.66523273]
[1745505492940,0.03,150.06,150.05,29.89893146]
[1745505493148,0.03,150.06,150.02,25.31529509]
[1745505493443,0.03,150.06,150.04,29.89893146]
[1745505493643,0.03,150.06,150.05,29.89893146]
[1745505494173,0.03,150.06,150.04,29.89893146]
[1745505494367,0.03,150.06,150.0,1.21904761]
[1745505494571,29.89893146,150.04,149.99,29.89893146]
[1745505494966,29.89893146,150.01,149.91,247.93895631]
[1745505495167,29.89893146,150.01,149.96,29.89893146]
[1745505495341,1.533,150.05,150.0,29.89893146]
[1745505495670,0.03,150.06,150.03,29.89893146]
[1745505495970,29.92893146,150.06,150.02,29.89893146]
[1745505496853,29.89893146,150.05,150.0,1.21904761]
[1745505497045,55.92893146,150.06,150.01,29.89893146]
[1745505497367,29.89893146,150.05,150.0,31.11797907]
[1745505497595,55.92893146,150.06,150.01,29.89893146]
[1745505497774,29.89893146,150.05,150.01,29.89893146]
[1745505497956,0.03,150.06,150.04,29.89893146]
[1745505498272,0.03,150.06,150.05,29.89893146]
[1745505499251,0.03,150.06,150.02,29.89893146]
[1745505499458,0.03,150.06,150.0,7.88559883]
[1745505499641,0.03,150.06,150.03,29.89893146]
[1745505499854,0.03,150.06,150.04,29.89893146]
[1745505500051,0.03,150.06,150.03,29.89893146]
[1745505500457,29.89893146,150.04,149.97,33.66964886]
[1745505500655,29.89893146,150.03,149.98,29.89893146]
[1745505501375,29.89893146,150.04,150.0,29.89893146]
[1745505501572,29.89893146,150.03,149.95,25.31837865]
[1745505501787,29.89893146,150.04,149.99,29.89893146]
[1745505502476,29.89893146,150.03,149.99,29.89893146]
[1745505503474,29.89893146,150.03,149.92,6.1573]
[1745505503475,29.89893146,150.0,149.92,6.1573]
[1745505503676,8.1396,150.02,149.94,29.89893146]
[1745505503985,8.1396,150.02,149.96,29.89893146]
[1745505503986,29.89893146,150.0,149.96,29.89893146]
[1745505504171,8.1396,150.02,149.96,29.89893146]
[1745505504370,31.53963146,150.02,149.97,29.89893146]
[1745505505179,41.02,150.03,149.95,25.31853848]
[1745505505349,70.91893146,150.03,149.99,29.89893146]
[1745505505781,29.89893146,150.02,149.95,25.31853848]
[1745505505952,29.89893146,150.01,149.97,29.89893146]
[1745505506556,0.03,150.06,149.98,18.64964886]
[1745505506764,0.03,150.06,150.05,29.89893146]
[1745505507693,0.03,150.06,150.02,18.64964886]
[1745505507866,0.03,150.06,150.05,29.89893146]
[1745505508466,0.03,150.06,150.05,36.56337664]
[1745505508664,0.03,150.13,150.05,85.11195696]
[1745505508990,0.03,150.13,150.12,29.89893146]
[1745505509169,0.03,150.13,150.11,29.89893146]
[1745505509552,0.03,150.13,150.06,1.21856019]
[1745505509758,0.03,150.13,150.1,29.89893146]
[1745505510171,0.03,150.13,150.12,30.0]
[1745505510372,0.03,150.13,150.12,59.89893146]
[1745505510564,0.03,150.13,150.12,30.0]
[1745505511999,0.03,150.13,150.1,29.89893146]
[1745505512363,0.03,150.13,150.06,1.21856019]
[1745505512364,29.92893146,150.13,150.09,29.89893146]
[1745505512670,29.92893146,150.13,150.08,29.89893146]
[1745505512994,55.89893146,150.09,150.01,29.89893146]
[1745505513294,29.89893146,150.06,149.96,33.8741]
[1745505513482,32.5393,150.09,149.97,30.0]
[1745505513483,29.89893146,150.05,149.97,30.0]
[1745505513802,29.89893146,150.04,149.99,29.89893146]
[1745505514088,29.89893146,150.02,149.96,1.21937278]
[1745505514257,15.0,150.06,149.99,29.89893146]
[1745505514465,29.89893146,150.04,150.0,29.89893146]